{"text_format":"3","workbook":"xlsx","n_sheets":2,"sheets":["開始","結婚式の予算"],"read":"whole","date_system":"1900"}

{"sheet":"開始","index":0,"n_rows":7,"n_cols":2,"rows_kept":7}
[null,"このテンプレートについて"]
[null,"このテンプレートを使用して、実際の結婚費用のさまざまな項目について記録し、予算金額と照らして追跡します。"]
[null,"各テーブルに、衣装、装飾、プレゼント、花、音楽、写真、披露宴、ステーショナリー、交通費、その他の項目の支出を入力します。"]
[null,"見積もりの合計と実際の支出の合計が自動計算されます。"]
[null,"注: "]
[null,"その他の指示は、[結婚式の予算] ワークシートの列 A に記載されています。このテキストは意図的に非表示になっています。\nテキストを削除するには、列 A を選択し、[削除] を選択します。テキストを再表示するには、列 A を選択し、フォントの色を\n変更します。"]
[null,"テーブルの詳細については、テーブル内で Shift キーを押してから F10 キーを押し、次に [テーブル] オプション、[代替テキスト] の順に選択してください。"]

{"sheet":"結婚式の予算","index":1,"n_rows":93,"n_cols":4,"rows_kept":93,"merged":[[0,1,0,3],[2,1,2,3],[6,1,6,3],[15,1,15,3],[25,1,25,3],[34,1,34,3],[43,1,43,3],[50,1,50,3],[59,1,59,3],[68,1,68,3],[77,1,77,3],[85,1,85,3]]}
[null,"結婚式の予算"]
[]
[null,"支出の合計 "]
[null,"項目 ","予算","実際"]
[null,"支出の合計 ",{"$f":"SUM(Apparel[[#Totals],[予算]],装飾[[#Totals],[予算]],プレゼント[[#Totals],[予算]],花[[#Totals],[予算]],音楽[[#Totals],[予算]],写真[[#Totals],[予算]],披露宴[[#Totals],[予算]],ステーショナリーおよび印刷物[[#Totals],[予算]],交通費[[#Totals],[予算]],その他の費用[[#Totals],[予算]])","v":0},{"$f":"SUM(Apparel[[#Totals],[実際]],装飾[[#Totals],[実際]],プレゼント[[#Totals],[実際]],花[[#Totals],[実際]],音楽[[#Totals],[実際]],写真[[#Totals],[実際]],披露宴[[#Totals],[実際]],ステーショナリーおよび印刷物[[#Totals],[実際]],交通費[[#Totals],[実際]],その他の費用[[#Totals],[実際]],)","v":0}]
[]
[null,"Apparel"]
[null,"項目 ","予算","実際"]
[null,"婚約指輪"]
[null,"結婚指輪"]
[null,"花嫁衣裳"]
[null,"ベール/帽子"]
[null,"その他:"]
[null,"衣装の合計",{"$f":"SUBTOTAL(109,Apparel[予算])","v":0},{"$f":"SUBTOTAL(109,Apparel[実際])","v":0}]
[]
[null,"装飾"]
[null,"項目 ","予算","実際"]
[null,"教会ベンチ/その他座席のリボン"]
[null,"テーブルのセンターピース (花を除く)"]
[null,"キャンドル"]
[null,"照明"]
[null,"風船"]
[null,"その他:"]
[null,"装飾の合計",{"$f":"SUBTOTAL(109,装飾[予算])","v":0},{"$f":"SUBTOTAL(109,装飾[実際])","v":0}]
[]
[null,"プレゼント"]
[null,"項目 ","予算","実際"]
[null,"付添人"]
[null,"花嫁と花婿"]
[null,"親"]
[null,"スピーチ担当/その他の参加者"]
[null,"その他:"]
[null,"プレゼントの合計",{"$f":"SUBTOTAL(109,プレゼント[予算])","v":0},{"$f":"SUBTOTAL(109,プレゼント[実際])","v":0}]
[]
[null,"花"]
[null,"項目 ","予算","実際"]
[null,"ブーケ"]
[null,"ブートニエール"]
[null,"コサージュ"]
[null,"式"]
[null,"その他:"]
[null,"花の合計",{"$f":"SUBTOTAL(109,花[予算])","v":0},{"$f":"SUBTOTAL(109,花[実際])","v":0}]
[]
[null,"音楽"]
[null,"項目 ","予算","実際"]
[null,"式の演奏者"]
[null,"披露宴のバンド/DJ"]
[null,"その他:"]
[null,"音楽の合計",{"$f":"SUBTOTAL(109,音楽[予算])","v":0},{"$f":"SUBTOTAL(109,音楽[実際])","v":0}]
[]
[null,"写真"]
[null,"項目 ","予算","実際"]
[null,"記念写真"]
[null,"スナップ写真"]
[null,"追加のプリント"]
[null,"フォト アルバム"]
[null,"その他:"]
[null,"写真の合計",{"$f":"SUBTOTAL(109,写真[予算])","v":0},{"$f":"SUBTOTAL(109,写真[実際])","v":0}]
[]
[null,"披露宴 "]
[null,"項目 ","予算","実際"]
[null,"会場/ホール料金"]
[null,"テーブルと椅子"]
[null,"食費"]
[null,"テーブルクロス等"]
[null,"その他:"]
[null,"披露宴の合計 (音楽と装飾を除く)",{"$f":"SUBTOTAL(109,披露宴[予算])","v":0},{"$f":"SUBTOTAL(109,披露宴[実際])","v":0}]
[]
[null,"ステーショナリーおよび印刷物"]
[null,"項目 ","予算","実際"]
[null,"招待状"]
[null,"結婚報告"]
[null,"お礼状"]
[null,"個人用ステーショナリー"]
[null,"その他:"]
[null,"ステーショナリー/印刷物の合計",{"$f":"SUBTOTAL(109,ステーショナリーおよび印刷物[予算])","v":0},{"$f":"SUBTOTAL(109,ステーショナリーおよび印刷物[実際])","v":0}]
[]
[null,"交通費"]
[null,"項目 ","予算","実際"]
[null,"リムジン/トロリー バス"]
[null,"駐車場"]
[null,"タクシー"]
[null,"その他:"]
[null,"交通費の合計",{"$f":"SUBTOTAL(109,交通費[予算])","v":0},{"$f":"SUBTOTAL(109,交通費[実際])","v":0}]
[]
[null,"その他の費用"]
[null,"項目 ","予算","実際"]
[null,"司祭者"]
[null,"教会/式場料金"]
[null,"ウエディング コーディネーター"]
[null,"リハーサル ディナー"]
[null,"その他:"]
[null,"その他の費用の合計",{"$f":"SUBTOTAL(109,その他の費用[予算])","v":0},{"$f":"SUBTOTAL(109,その他の費用[実際])","v":0}]